bitfinex-derivatives/quotes_ETHF0:USTF0_20251210
["timestamp","ask_amount","ask_price","bid_price","bid_amount"]
[1765337982976,2.26698129,3311.7,3311.1,3.2078]
[1765337983176,1.3892,3311.2,3311.1,4.671]
[1765337983573,1.3892,3311.2,3311.1,3.2078]
[1765337984477,1.3892,3310.9,3310.8,1.46773193]
[1765337985269,3.6379,3311.5,3310.8,1.46773193]
[1765337985474,0.64226502,3311.4,3310.8,1.46773193]
[1765337986370,1.3892,3310.9,3310.8,1.46773193]
[1765337986882,0.7135,3310.9,3310.8,1.46773193]
[1765337987284,0.64227691,3311.4,3310.8,1.46773193]
[1765337987479,2.03147691,3311.4,3311.3,0.7322]
[1765337987879,2.03147691,3311.4,3311.3,1.4632]
[1765337988079,0.64227691,3311.4,3311.3,1.4632]
[1765337988784,1.35577691,3311.4,3311.3,1.4632]
[1765337988977,5.0172,3312.0,3311.9,0.7322]
[1765337989180,0.7135,3311.6,3311.5,1.9028]
[1765337989575,1.3892,3311.6,3311.5,1.9028]
[1765337989772,2.03164007,3311.6,3311.5,1.9028]
[1765337990176,2.03164007,3311.6,3311.5,1.4632]
[1765337990578,2.03164007,3311.6,3311.5,1.9028]
[1765337990773,0.64244007,3311.6,3311.5,1.9028]
[1765337990979,2.26751235,3311.9,3311.8,1.4632]
[1765337991188,1.62507228,3311.9,3311.8,1.4632]
[1765337991387,2.26742972,3311.9,3311.8,1.4632]
[1765337991787,1.59172972,3311.9,3311.8,1.4632]
[1765337992886,2.26742972,3311.9,3311.8,1.4632]
[1765337993290,1.4184,3311.6,3311.5,0.7149]
[1765337993491,1.4184,3311.6,3311.5,1.4016]
[1765337993690,2.06075744,3311.6,3311.5,1.4016]
[1765337995184,0.63251588,3311.6,3311.5,1.8175]
[1765337995389,1.65416486,3312.2,3311.5,3.6237]
[1765337995591,1.4184,3312.2,3311.5,3.6237]
[1765337996082,0.6837,3311.6,3311.5,5.0253]
[1765337996286,1.4184,3311.6,3311.5,3.2078]
[1765337997382,1.4184,3311.6,3311.5,4.6094]
[1765337999884,0.6837,3311.6,3311.5,5.0253]
[1765338000085,1.4184,3311.6,3311.5,4.6094]
[1765338001084,1.4184,3311.6,3311.5,3.9227]
[1765338001289,1.4184,3311.6,3311.5,3.2078]
[1765338002082,1.4184,3311.0,3310.9,1.4016]
[1765338003391,1.8623,3311.0,3310.9,0.7149]
[1765338003994,1.4184,3311.0,3310.9,1.4016]
[1765338004390,0.6837,3311.0,3310.9,1.4016]
[1765338004595,1.65425897,3311.4,3311.3,0.7149]
[1765338005794,1.65425897,3311.4,3310.8,0.00453193]
[1765338005994,0.7244,3310.9,3310.8,1.41303193]
[1765338007591,2.10592672,3311.2,3311.1,1.4085]
[1765338009102,0.64142672,3311.2,3311.1,1.4085]
[1765338009298,2.34174873,3311.5,3311.4,1.4085]
[1765338009597,2.34174873,3311.5,3311.4,0.7169]
[1765338009810,2.77494873,3311.5,3311.4,0.7169]
[1765338009995,2.77494873,3311.5,3311.0,0.4402]
[1765338010198,2.34174873,3311.4,3311.3,0.7169]
[1765338010503,2.34174873,3311.4,3311.3,1.4085]
[1765338011802,1.4645,3311.1,3311.0,1.8487]
[1765338012105,2.10592672,3311.1,3311.0,1.4085]
[1765338012706,1.4645,3310.9,3310.8,0.72143193]
[1765338012910,1.4645,3310.9,3310.8,1.41303193]
[1765338013206,0.4332,3311.5,3311.4,0.7169]
[1765338013207,1.1576,3311.5,3311.4,0.7169]
[1765338013399,2.77464144,3311.5,3310.8,0.00453193]
[1765338013601,0.87694144,3311.4,3310.8,0.00453193]
[1765338013800,1.4645,3310.9,3310.8,1.41303193]
[1765338014995,0.4332,3311.5,3310.8,1.41303193]
[1765338015201,1.31008401,3311.5,3310.8,1.41303193]
[1765338015404,2.53883637,3311.5,3311.4,1.4085]
[1765338015602,2.10563637,3311.5,3311.4,1.4085]
[1765338016910,2.53883637,3311.5,3311.4,1.4085]
[1765338017110,2.53883637,3311.5,3311.4,0.7169]
[1765338019503,2.10563637,3311.5,3311.4,1.4085]
[1765338022107,1.4645,3311.2,3311.1,3.9247]
[1765338022411,1.4645,3311.2,3311.1,4.6163]
[1765338023506,0.7244,3311.2,3311.1,4.6163]
[1765338024008,1.37537223,3311.4,3311.3,1.3527]
[1765338024309,0.64127223,3311.9,3311.8,0.6797]
[1765338024509,2.33359883,3311.9,3311.8,1.3527]
[1765338030317,2.09777223,3311.9,3311.8,1.3527]
[1765338036030,1.46103193,3312.7,3312.0,0.4159]
[1765338036330,1.4565,3312.2,3312.1,3.8875]
[1765338036534,1.4565,3312.2,3312.1,3.2078]
[1765338036733,2.09685863,3312.2,3312.1,3.2078]
[1765338038335,2.09685863,3312.2,3312.1,3.8875]
[1765338039334,1.4565,3312.2,3312.1,3.8875]
[1765338041134,1.4565,3312.2,3312.1,3.2078]
[1765338041834,1.4565,3312.2,3312.1,3.8875]
[1765338042137,1.4565,3312.2,3312.1,4.5605]
[1765338042542,0.4352,3312.5,3312.1,4.5605]
[1765338042543,1.8917,3312.5,3312.4,1.3527]
[1765338042731,2.53174179,3312.5,3312.4,1.3527]
[1765338043036,2.53174179,3312.5,3312.4,0.6797]
[1765338044138,2.53174179,3312.5,3312.4,1.3527]
[1765338045428,0.64004179,3312.5,3312.4,2.28899057]
[1765338045641,0.00453193,3312.7,3312.6,1.3527]
[1765338045939,0.00453193,3312.7,3312.6,4.5605]
[1765338050541,0.00243485,3313.0,3312.6,4.5605]
[1765338050542,0.00243485,3313.0,3312.9,1.3527]
[1765338050741,0.00243485,3313.0,3312.9,2.29225803]
[1765338051341,3.485e-05,3313.0,3312.9,2.29225803]
[1765338061446,0.67623485,3313.0,3312.9,2.29225803]
[1765338062658,1.38753485,3313.0,3312.9,2.29225803]
[1765338063853,1.80233485,3313.0,3312.9,2.32805803]
[1765338064457,1.38753485,3313.0,3312.9,2.32805803]
[1765338064654,0.67623485,3313.0,3312.9,2.32805803]
[1765338066059,1.38753485,3313.0,3312.9,2.32805803]
[1765338066560,0.67623485,3313.0,3312.9,2.32805803]
[1765338066956,3.485e-05,3313.0,3312.9,2.32805803]
[1765338067261,3.485e-05,3313.0,3312.9,0.93955803]
[1765338069561,1.82683485,3313.0,3312.9,0.73596746]
[1765338069762,1.82683485,3313.0,3312.9,1.41126746]
[1765338070959,0.72923485,3313.0,3312.9,1.41126746]
[1765338071154,3.485e-05,3313.0,3312.9,0.93955803]
[1765338073151,3.485e-05,3313.0,3312.9,1.09046803]
[1765338075757,1.40863485,3313.0,3312.9,0.93955803]
[1765338075962,0.72923485,3313.0,3312.9,2.34755803]
[1765338076161,3.485e-05,3313.0,3312.9,0.93955803]
[1765338078459,0.72923485,3313.0,3312.9,3.96351655]
[1765338078664,0.72923485,3313.0,3312.9,2.34755803]
[1765338079063,0.72923485,3313.0,3312.9,0.93955803]
[1765338079265,1.40863485,3313.0,3312.9,2.34755803]
[1765338079564,1.82683485,3313.0,3312.9,1.67225803]
[1765338079765,1.82683485,3313.0,3312.9,2.34755803]
[1765338080767,1.40863485,3313.0,3312.9,2.34755803]
[1765338081164,0.72923485,3313.0,3312.9,2.34755803]
[1765338081371,3.485e-05,3313.0,3312.9,0.93955803]
[1765338082669,3.485e-05,3313.0,3312.9,2.55551655]
[1765338082868,3.485e-05,3313.0,3312.9,0.93955803]
[1765338083074,0.64070931,3313.8,3313.7,1.408]
[1765338083268,0.7292,3314.2,3314.1,1.4425]
[1765338083461,1.4169,3314.2,3314.1,1.4425]
[1765338083668,2.29464774,3314.2,3314.1,1.4425]
[1765338083975,0.6774,3313.8,3313.7,4.6393]
[1765338084180,1.3651,3313.8,3313.7,4.6393]
[1765338084377,0.64051812,3313.9,3313.7,3.9176]
[1765338084581,2.00878778,3314.2,3314.1,1.4315]
[1765338084877,2.00878778,3314.2,3314.1,0.7217]
[1765338086373,0.6774,3313.8,3313.7,5.57559057]
[1765338086773,0.6774,3313.8,3313.7,4.6393]
[1765338087582,1.36835312,3314.2,3314.1,0.7217]
[1765338087877,2.00816984,3314.2,3314.1,0.7217]
[1765338088082,2.00816984,3314.2,3314.1,1.4315]
[1765338090885,2.00816984,3314.2,3314.1,4.6393]
[1765338091280,0.64306984,3314.2,3314.1,4.6393]
[1765338091579,0.00325312,3314.2,3314.1,4.6393]
[1765338093680,1.36835312,3314.2,3314.1,4.6393]
[1765338094580,0.68065312,3314.2,3314.1,4.6393]
[1765338097191,0.00325312,3314.2,3314.1,4.6393]
[1765338097385,0.68065312,3314.2,3314.1,4.6393]
[1765338097578,1.36835312,3314.2,3314.1,4.6393]
[1765338103995,0.68065312,3314.2,3314.1,4.6393]
[1765338106600,0.00325312,3314.2,3314.1,4.6393]
[1765338108705,0.68065312,3314.2,3314.1,4.6393]
[1765338109802,1.36835312,3314.2,3314.1,4.6393]
[1765338110202,2.00527082,3314.2,3314.1,4.6393]
[1765338110499,1.3651,3313.8,3313.7,3.2078]
[1765338110705,2.0020177,3313.8,3313.7,1.4315]
[1765338114206,1.3886,3313.6,3313.5,1.4403]
[1765338114404,2.0255177,3313.6,3313.5,0.714]
[1765338114612,2.0255177,3313.6,3313.5,1.4403]
[1765338117513,1.39185312,3314.2,3314.1,1.4403]
[1765338117808,2.26696703,3314.2,3314.1,1.4403]
[1765338118019,2.26696703,3314.2,3314.1,0.714]
[1765338118417,2.26696703,3314.2,3313.5,0.3995]
[1765338118610,0.6982,3313.6,3313.5,1.8398]
[1765338119517,1.7967,3314.0,3313.9,0.714]
[1765338119811,2.67170117,3314.0,3313.9,0.714]
[1765338120113,0.6982,3313.6,3313.5,1.8398]
[1765338120412,2.02644768,3313.9,3313.8,1.4403]
[1765338121509,0.6982,3313.4,3313.3,3.2078]
[1765338121709,1.3886,3313.4,3313.3,4.6481]
[1765338123506,1.3886,3313.4,3313.3,3.9218]
[1765338123913,1.3886,3313.4,3313.3,4.6481]
[1765338124207,0.6982,3313.4,3313.3,4.6481]
[1765338124413,2.26463768,3313.9,3313.8,0.714]
[1765338125420,2.26463768,3313.9,3313.3,3.2078]
[1765338125617,0.63765767,3313.8,3313.3,3.2078]
[1765338125814,0.87603408,3313.9,3313.3,3.2078]
[1765338126117,0.63765767,3313.8,3313.3,3.2078]
[1765338126511,0.23837641,3313.9,3313.3,3.2078]
[1765338126710,0.64647641,3314.0,3313.3,3.2078]
[1765338128022,0.7071,3313.4,3313.3,3.8869]
[1765338128214,1.4251,3313.4,3313.3,4.5823]
[1765338129718,0.4081,3314.0,3313.9,0.6791]
[1765338129924,1.8332,3314.0,3313.9,0.6791]
[1765338130121,0.7071,3313.6,3313.5,1.786]
[1765338130317,2.30068419,3313.9,3313.8,1.3745]
[1765338130518,0.63720856,3313.9,3313.8,1.3745]
[1765338130717,1.4251,3313.8,3313.7,4.5823]
[1765338131218,0.7071,3313.8,3313.7,4.5823]
[1765338131717,0.63720856,3313.8,3313.7,4.5823]
[1765338131922,0.87886112,3314.2,3313.7,4.5823]
[1765338132116,0.7071,3313.8,3313.7,4.5823]
[1765338133223,1.6635197,3314.1,3314.0,1.3745]
[1765338133423,2.30072826,3314.1,3314.0,1.3745]
[1765338136226,2.30072826,3314.1,3314.0,0.6791]
[1765338136425,1.4251,3313.8,3313.7,4.5823]
[1765338136825,2.06230856,3313.8,3313.7,4.5823]
[1765338137420,2.06230856,3313.8,3313.7,3.8869]
[1765338138527,0.63720856,3313.8,3313.7,4.5823]
[1765338138824,2.30418854,3314.2,3314.1,1.3745]
[1765338140622,2.30418854,3314.2,3314.1,0.6791]
[1765338142130,2.30418854,3314.2,3314.1,1.3745]
[1765338142924,1.4251,3313.8,3313.7,4.5823]
[1765338143324,2.03929224,3314.0,3313.9,1.3763]
[1765338143529,2.27805588,3314.0,3313.9,1.3763]
[1765338143729,1.57665588,3314.0,3313.9,1.3763]
[1765338144234,0.87695588,3314.0,3313.9,1.3763]
[1765338144532,1.34112685,3314.2,3314.1,1.3763]
[1765338144730,1.57988302,3314.2,3314.1,1.3763]
[1765338145126,2.28128302,3314.2,3314.1,1.3763]
[1765338146027,2.04252685,3314.2,3314.1,1.3763]
[1765338146234,2.28127668,3314.2,3314.1,0.6705]
[1765338146926,0.6997,3313.8,3313.7,4.5841]
[1765338147329,2.27802356,3314.0,3313.9,1.3763]
[1765338148735,1.57662356,3314.0,3313.9,1.3763]
[1765338149532,0.87692356,3314.0,3313.9,1.3763]
[1765338149732,0.70295312,3314.2,3314.1,1.3763]
[1765338150324,1.57977637,3314.2,3314.1,1.3763]
[1765338150536,2.28117637,3314.2,3314.1,1.3763]
[1765338151030,1.57977637,3314.2,3314.1,1.3763]
[1765338152635,1.57977637,3314.2,3314.1,4.5841]
[1765338153735,0.88007637,3314.2,3314.1,4.5841]
[1765338154130,0.00325312,3314.2,3314.1,4.5841]
[1765338154332,0.70295312,3314.2,3314.1,4.5841]
[1765338155138,0.70295312,3314.2,3314.1,3.8783]
[1765338155139,2.04243997,3314.2,3314.1,3.8783]
[1765338155333,2.97751908,3314.2,3314.1,3.2078]
[1765338155541,3.21618843,3314.2,3314.1,3.2078]
[1765338159140,3.21618843,3314.2,3314.1,4.5841]
[1765338159435,2.28110932,3314.2,3314.1,4.5841]
[1765338161041,2.28110932,3314.2,3314.1,3.8783]
[1765338161638,0.6997,3313.8,3313.7,4.5841]
[1765338162335,1.4011,3313.8,3313.7,4.5841]
[1765338162738,2.03669476,3313.8,3313.7,4.5841]
[1765338165448,1.33529476,3313.8,3313.7,4.5841]
[1765338165651,0.6997,3313.9,3313.8,1.3763]
[1765338165857,1.33532963,3313.9,3313.8,1.3763]
[1765338166556,2.03672963,3313.9,3313.8,0.6705]
[1765338168158,1.4011,3313.8,3313.7,3.8783]
[1765338168455,2.03672963,3313.8,3313.7,3.8783]
[1765338168657,2.03672963,3313.8,3313.7,4.5841]
[1765338169660,2.03672963,3313.8,3313.7,3.8783]
[1765338169862,2.97180874,3313.8,3313.7,3.2078]
[1765338170056,3.21056094,3313.8,3313.7,3.2078]
[1765338172755,0.87438183,3313.8,3313.7,0.6705]
[1765338172952,2.27548183,3313.8,3313.7,1.3763]
[1765338173164,2.27548183,3313.8,3313.7,0.6705]
[1765338174161,0.718,3313.3,3313.2,3.8827]
[1765338174361,1.4217,3313.3,3313.2,4.6056]
[1765338175865,0.718,3313.3,3313.2,4.6056]
[1765338176257,2.05709745,3313.5,3313.4,1.3978]
[1765338176560,1.35339745,3313.5,3313.4,1.3978]
[1765338176866,0.63539745,3313.5,3313.4,1.3978]
[1765338177057,2.2956674,3313.8,3313.7,0.6749]
[1765338177665,2.2956674,3313.8,3313.2,3.2078]
[1765338177865,0.718,3313.3,3313.2,4.6056]
[1765338178062,2.35677911,3313.3,3313.2,3.8827]
[1765338178273,2.99206031,3313.3,3313.2,3.2078]
[1765338178467,2.99206031,3313.3,3313.2,3.8827]
[1765338179668,2.99206031,3313.3,3313.2,3.2078]
[1765338179861,2.99206031,3313.3,3313.2,3.8827]
[1765338181471,1.3532812,3313.3,3313.2,4.6056]
[1765338181661,1.4217,3313.5,3313.4,1.3978]
[1765338181860,2.29489171,3313.5,3313.4,1.3978]
[1765338182062,2.70709171,3313.5,3313.4,0.6749]
[1765338182362,1.4217,3313.3,3313.2,4.6056]
[1765338182559,2.35677911,3313.3,3313.2,3.8827]
[1765338182764,2.99163401,3313.3,3313.2,4.6056]
[1765338183563,1.4217,3314.1,3314.0,1.8294]
[1765338183761,0.87281306,3314.1,3314.0,1.8294]
[1765338184067,0.00325312,3314.2,3314.1,1.3978]
[1765338186262,1.65633223,3314.2,3314.1,1.3978]
[1765338186665,0.00325312,3314.2,3314.1,1.3978]
[1765338192564,4.83177031,3315.4,3315.3,1.4207]
[1765338192565,3.9188,3315.4,3315.3,1.4207]
[1765338192768,1.4146,3315.1,3315.0,0.00452441]
[1765338193470,1.41814022,3315.1,3315.0,0.00676869]
[1765338193975,1.41814022,3315.1,3315.0,0.69046869]
[1765338194276,0.71454022,3315.1,3315.0,1.42746869]
[1765338194970,1.41814022,3315.1,3315.0,1.42746869]
[1765338195173,0.71454022,3315.1,3315.0,1.83166869]
[1765338195673,1.41814022,3315.1,3315.0,1.42746869]
[1765338195874,1.41814022,3315.1,3315.0,0.69046869]
[1765338196076,1.41814022,3315.1,3315.0,0.00676869]
[1765338197076,1.4146,3314.1,3314.0,4.6285]
[1765338197770,0.711,3314.1,3314.0,4.6285]
[1765338197972,0.711,3314.1,3314.0,5.0327]
[1765338198276,0.711,3314.1,3314.0,5.03541645]
[1765338198476,1.4146,3314.1,3314.0,5.03541645]
[1765338198672,1.4146,3314.1,3314.0,4.63121645]
[1765338198875,1.4146,3314.1,3314.0,3.21051645]
[1765338199270,1.4146,3314.1,3314.0,3.89421645]
[1765338199674,1.4146,3314.1,3314.0,4.63121645]
[1765338200274,0.00449935,3314.4,3314.0,5.03541645]
[1765338200474,2.05331689,3314.4,3314.3,1.4207]
[1765338201084,2.05331689,3314.4,3314.3,0.6837]
[1765338202382,1.4146,3314.1,3314.0,3.21051645]
[1765338202587,2.34967911,3314.1,3314.0,3.21051645]
[1765338202883,2.34967911,3314.1,3314.0,3.89421645]
[1765338203484,1.4146,3314.1,3314.0,4.63121645]
[1765338204484,1.4146,3314.1,3314.0,1.42341645]
[1765338204687,1.4146,3314.1,3314.0,0.68641645]
[1765338205185,1.4146,3314.1,3314.0,1.37431645]
[1765338205688,1.4146,3314.1,3314.0,0.68641645]
[1765338206088,1.4146,3314.1,3314.0,1.37431645]
[1765338206487,0.93507911,3314.2,3314.0,1.79641645]
[1765338206680,2.39957911,3314.2,3314.1,1.4146]
[1765338206980,3.03410463,3314.2,3314.0,0.00271645]
[1765338207186,1.4645,3314.1,3314.0,0.72941645]
[1765338208389,1.4645,3314.1,3314.0,1.41731645]
[1765338209990,1.4645,3314.1,3314.0,0.72941645]
[1765338210287,2.39966815,3314.1,3314.0,0.00271645]
[1765338210482,3.03456285,3314.1,3314.0,0.00271645]
[1765338211084,3.03456285,3314.1,3314.0,0.72941645]
[1765338213684,3.03456285,3314.1,3314.0,1.41731645]
[1765338215791,1.3552947,3314.1,3314.0,1.83941645]
[1765338216088,1.4645,3314.1,3314.0,1.83941645]
[1765338216287,2.0993947,3314.1,3314.0,1.83941645]
[1765338216990,0.00449935,3314.4,3314.3,1.4146]
[1765338218885,3.2078,3314.8,3314.7,1.4146]
[1765338219583,3.9519,3314.8,3314.3,0.7267]
[1765338219788,0.7204,3314.4,3314.3,1.4146]
[1765338220194,0.93516815,3314.9,3314.3,1.4146]
[1765338220393,0.7204,3314.4,3314.3,1.4146]
[1765338220594,1.4645,3314.4,3314.3,1.4146]
[1765338221395,0.7204,3314.4,3314.3,1.4146]
[1765338221897,1.4645,3314.4,3314.3,1.4146]
[1765338223099,4.6723,3314.8,3314.7,0.7267]
[1765338223300,4.91176294,3314.8,3314.7,0.7267]
[1765338223693,4.91176294,3314.8,3313.7,1.61890728]
[1765338223897,4.6723,3314.8,3313.7,1.61890728]
[1765338226200,0.23967138,3314.7,3313.8,1.61438287]
[1765338226702,1.70417138,3314.7,3314.6,0.7267]
[1765338226898,1.70417138,3314.7,3313.8,1.61438287]
[1765338227099,1.4645,3314.7,3314.6,0.7267]
[1765338227300,1.70417138,3314.7,3314.6,0.7267]
[1765338228298,1.70417138,3314.7,3313.8,1.61438287]
[1765338228499,1.4645,3314.7,3313.8,1.61438287]
[1765338228695,1.4645,3314.7,3314.6,0.7267]
[1765338228894,2.34182352,3314.7,3314.6,1.4146]
[1765338229096,2.10216678,3314.7,3314.6,1.4146]
[1765338229397,0.7204,3314.1,3314.0,5.04721645]
[1765338229600,1.4645,3314.1,3314.0,0.00271645]
[1765338229798,3.03739871,3314.1,3314.0,0.00271645]
[1765338230202,3.27703767,3314.1,3314.0,0.00271645]
[1765338230603,2.34186952,3314.1,3314.0,0.72941645]
[1765338230796,0.63773056,3314.1,3314.0,1.83941645]
[1765338230998,0.7204,3314.1,3314.0,1.83941645]
[1765338231197,2.10223056,3314.1,3314.0,1.41731645]
[1765338231899,2.10223056,3314.1,3314.0,0.00271645]
[1765338232492,2.10223056,3314.1,3314.0,0.72941645]
[1765338232698,2.10223056,3314.1,3314.0,1.41731645]
[1765338232900,1.35813056,3314.1,3314.0,1.83941645]
[1765338233301,1.4645,3314.1,3314.0,1.83941645]
[1765338233501,2.10223056,3314.1,3314.0,1.41731645]
[1765338233702,2.10223056,3314.1,3314.0,0.72941645]
[1765338233904,2.10223056,3314.1,3314.0,0.00271645]
[1765338237310,2.10223056,3314.1,3314.0,0.71971645]
[1765338239007,0.63773056,3314.1,3314.0,1.40771645]
[1765338239207,2.00353056,3314.2,3314.1,1.405]
[1765338239514,2.00353056,3314.2,3314.1,0.717]
[1765338240216,2.00329713,3314.2,3314.1,0.717]
[1765338242117,1.3658,3314.1,3314.0,0.71971645]
[1765338242317,2.00329713,3314.1,3314.0,0.71971645]
[1765338242516,5.9021,3314.7,3314.6,1.405]
[1765338242721,0.6763,3314.1,3314.0,1.82031645]
[1765338242916,2.00325782,3314.4,3314.3,1.405]
[1765338245623,1.31375782,3314.4,3314.3,1.405]
[1765338245822,0.6763,3314.4,3314.3,4.6128]
[1765338246723,0.6763,3314.6,3314.5,1.4414]
[1765338246923,2.34345907,3314.9,3314.8,0.7143]
[1765338247424,1.468,3314.4,3314.3,3.2078]
[1765338247626,1.468,3314.4,3314.3,1.4387]
[1765338248824,1.468,3314.1,3314.0,0.71701645]
[1765338249029,1.468,3314.1,3314.0,1.44141645]
[1765338249325,0.7293,3314.1,3314.0,1.44141645]
[1765338250321,0.7293,3314.1,3314.0,1.87351645]
[1765338250722,0.63618648,3314.4,3314.3,1.4387]
[1765338250922,1.60518337,3314.6,3314.5,1.8708]
[1765338251416,2.34388337,3314.6,3314.5,1.8708]
[1765338251623,2.10418648,3314.6,3314.5,1.8708]
[1765338252426,1.36548648,3314.6,3314.5,1.8708]
[1765338252819,0.7293,3314.6,3314.5,1.8708]
[1765338253427,1.468,3314.4,3314.3,1.4387]
[1765338253725,1.468,3314.1,3314.0,1.87351645]
[1765338254028,1.468,3314.1,3314.0,0.71701645]
[1765338254428,1.468,3314.1,3314.0,1.44141645]
[1765338256428,1.468,3314.1,3314.0,0.71701645]
[1765338256933,2.40316815,3314.1,3314.0,0.00271645]
[1765338257128,2.10441782,3314.1,3314.0,0.71701645]
[1765338257322,2.10441782,3314.1,3314.0,1.44141645]
[1765338258729,2.10441782,3314.1,3314.0,0.71701645]
[1765338259633,2.10441782,3314.1,3314.0,1.44141645]
[1765338259829,0.7293,3314.1,3314.0,1.44141645]
[1765338260132,2.34438195,3314.4,3314.3,1.4387]
[1765338261534,2.34438195,3314.4,3314.3,0.7143]
[1765338261731,1.468,3314.1,3314.0,1.87351645]
[1765338262032,1.8755,3314.5,3314.4,0.7143]
[1765338262232,2.7519577,3314.5,3314.4,0.7143]
[1765338263429,0.8764577,3314.5,3314.4,1.4387]
[1765338263830,1.61612365,3314.6,3314.5,1.8588]
[1765338264031,2.32922365,3314.6,3314.5,1.8588]
[1765338264329,2.32922365,3314.6,3314.5,1.4295]
[1765338265239,0.7131,3314.4,3314.0,1.16171645]
[1765338265536,0.739,3314.1,3314.0,1.86431645]
[1765338265836,1.4521,3314.1,3314.0,1.86431645]
[1765338266037,0.739,3314.1,3314.0,1.86431645]
[1765338268042,1.4521,3314.1,3314.0,1.86431645]
[1765338268340,2.08904746,3314.1,3314.0,1.43221645]
[1765338269541,2.08904746,3314.1,3314.0,0.00271645]
[1765338270136,2.08904746,3314.1,3314.0,0.72961645]
[1765338270538,2.08904746,3314.1,3314.0,1.43221645]
[1765338270738,3.02425183,3314.1,3314.0,1.43221645]
[1765338271540,3.02425183,3314.1,3314.0,0.72961645]
[1765338271736,3.02425183,3314.1,3314.0,1.43221645]
[1765338272441,3.02425183,3314.1,3314.0,0.72961645]
[1765338274946,3.02425183,3314.1,3314.0,0.00271645]
[1765338276446,3.02425183,3314.1,3314.0,0.72961645]
[1765338276750,3.02425183,3314.1,3314.0,1.43221645]
[1765338277343,3.02425183,3314.1,3314.0,0.72961645]
[1765338278152,3.02425183,3314.1,3314.0,0.00271645]
[1765338279949,3.02425183,3314.1,3314.0,0.72961645]
[1765338280349,3.02425183,3314.1,3314.0,1.43221645]
[1765338280549,2.31115183,3314.1,3314.0,1.43221645]
[1765338280751,3.02425183,3314.1,3314.0,1.43221645]
[1765338281143,3.02425183,3314.1,3314.0,0.72961645]
[1765338281339,3.02425183,3314.1,3314.0,0.00271645]
[1765338281545,3.26502208,3314.1,3314.0,0.00271645]
[1765338282149,1.4521,3313.6,3313.5,4.82218287]
[1765338282445,3.02425183,3313.6,3313.5,3.2078]
[1765338282754,1.4521,3313.2,3313.1,4.6373]
[1765338283147,0.739,3313.2,3313.1,4.6411563]
[1765338283941,1.4521,3313.2,3313.1,4.6411563]
[1765338286253,2.38730437,3313.2,3313.1,4.6411563]
[1765338287253,1.4521,3313.2,3313.1,4.6411563]
[1765338288852,1.4521,3313.2,3313.1,3.9385563]
[1765338289148,1.4521,3313.2,3313.1,3.2116563]
[1765338290047,1.4521,3313.2,3313.1,3.9385563]
[1765338291349,1.4521,3313.2,3313.1,4.6411563]
[1765338291554,1.4521,3313.2,3313.1,3.2116563]
[1765338292054,1.4521,3313.2,3313.1,0.0038563]
[1765338293757,2.38730437,3313.2,3313.1,0.0038563]
[1765338293963,2.08750423,3313.2,3313.1,0.0038563]
[1765338294157,3.0227086,3313.2,3313.1,0.0038563]
[1765338294350,1.4804,3312.9,3312.8,0.00452441]
[1765338294559,2.37470437,3312.7,3312.6,3.2078]
[1765338295355,2.37470437,3312.7,3312.0,2.04368287]
[1765338295356,1.4395,3312.3,3312.2,4.6065]
[1765338295655,1.4395,3312.3,3312.2,3.8821839]
[1765338295656,2.37470437,3312.3,3312.2,3.8821839]
[1765338296358,2.37470437,3312.3,3312.2,4.6100839]
[1765338296952,0.93520437,3312.5,3312.4,1.3987]
[1765338298253,0.00334596,3312.7,3312.6,1.3987]
[1765338301563,0.6981,3312.6,3312.2,3.2113839]
[1765338301853,1.4395,3312.3,3312.2,4.6100839]
[1765338302048,1.4395,3312.3,3312.2,3.8821839]
[1765338302254,1.4395,3312.3,3312.2,3.2113839]
[1765338302657,1.8789,3312.5,3312.4,1.3987]
[1765338302854,2.37470437,3312.5,3312.4,1.3987]
[1765338303454,2.81410437,3312.5,3312.4,1.3987]
[1765338304954,2.37470437,3312.5,3312.4,1.3987]
[1765338307158,2.81410437,3312.5,3312.4,0.6708]
[1765338307358,1.4395,3312.3,3312.2,1.4022839]
[1765338307757,1.37460437,3312.5,3312.2,1.4022839]
[1765338308052,1.63330437,3312.5,3312.4,1.3987]
[1765338308563,2.37470437,3312.5,3312.4,1.3987]
[1765338310058,2.80520437,3312.5,3312.4,1.3987]
[1765338310257,2.80520437,3312.5,3312.4,0.6708]
[1765338310667,1.4132,3312.3,3312.2,0.6930839]
[1765338310863,1.4132,3312.3,3312.2,0.0035839]
[1765338311665,2.04996348,3312.3,3312.2,0.0035839]
[1765338312162,2.04996348,3312.3,3311.2,4.5922]
[1765338312163,1.4132,3311.3,3311.2,4.5922]
[1765338312359,2.34840437,3311.3,3311.2,4.5922]
[1765338312967,2.34840437,3311.3,3311.2,4.59530604]
[1765338313265,2.34840437,3311.3,3311.2,3.90040604]
[1765338313660,2.34840437,3311.3,3311.2,3.21090604]
[1765338313860,2.34840437,3311.3,3311.2,0.00310604]
[1765338315568,2.34840437,3311.3,3311.2,1.38750604]
[1765338317964,2.34840437,3311.3,3311.2,0.00310604]
[1765338318568,2.34840437,3311.3,3311.2,1.38750604]
[1765338320981,3.2078,3311.4,3311.3,1.3844]
[1765338320982,4.14300437,3311.4,3311.3,1.3844]
[1765338321164,4.82400437,3311.4,3311.3,1.3844]
[1765338322374,5.55620437,3311.4,3311.3,1.3844]
[1765338323468,4.82400437,3311.4,3311.3,1.3844]
[1765338324669,4.14300437,3311.4,3311.3,1.3844]
[1765338324867,3.2078,3311.4,3311.3,1.3844]
[1765338325464,0.67672441,3311.6,3311.5,1.4128]
[1765338325670,1.36052441,3311.6,3311.5,1.4128]
[1765338327471,0.00452441,3311.6,3311.5,1.8263]
[1765338327867,0.67672441,3311.6,3311.5,1.8263]
[1765338333283,1.36052441,3311.6,3311.5,1.8263]
[1765338333578,1.36052441,3311.6,3311.5,1.4128]
[1765338333883,1.36052441,3311.6,3311.5,0.6956]
[1765338334082,1.356,3311.3,3311.2,1.41590604]
[1765338334281,0.6722,3311.3,3311.2,1.41590604]
[1765338334884,1.7726,3311.5,3311.4,1.4128]
[1765338335587,1.36052441,3311.6,3311.5,1.4128]
[1765338336985,0.00452441,3311.6,3311.5,1.8263]
[1765338337486,1.36052441,3311.6,3311.5,0.6956]
[1765338337684,1.36052441,3311.6,3311.5,1.4128]